[Event "Swedish U16 Team Championship 2019 - Final"]
[Site "Molnlycke Kulturhus, Biblioteksgatan 2, Molnlycke, Sweden"]
[Date "2019.08.18"]
[Round "5.18"]
[White "Isaksson, Philip"]
[Black "Nord, Gabriel"]
[Result "0-1"]
[TimeControl "90 minutes + 30 seconds per move from move one."]
[WhiteElo "1675"]
[BlackElo "1762"]

1. e4 {[%clk 01:30:57]} {[%emt 00:00:03]} e5 {[%clk 01:30:56]} {[%emt
00:00:04]} 2. Nf3 {[%clk 01:31:24]} {[%emt 00:00:03]} Nc6 {[%clk 01:31:22]}
{[%emt 00:00:04]} 3. Bb5 {[%clk 01:31:35]} {[%emt 00:00:18]} a6 {[%clk
01:31:47]} {[%emt 00:00:05]} 4. Bxc6 {[%clk 01:32:02]} {[%emt 00:00:03]} dxc6
{[%clk 01:32:10]} {[%emt 00:00:06]} 5. d4 {[%clk 01:32:31]} {[%emt 00:00:02]}
exd4 {[%clk 01:32:08]} {[%emt 00:00:32]} 6. Qxd4 {[%clk 01:32:57]} {[%emt
00:00:04]} Qxd4 {[%clk 01:32:22]} {[%emt 00:00:15]} 7. Nxd4 {[%clk 01:33:19]}
{[%emt 00:00:07]} Bd7 {[%clk 01:31:58]} {[%emt 00:00:55]} 8. Be3 {[%clk
01:32:48]} {[%emt 00:01:01]} O-O-O {[%clk 01:31:59]} {[%emt 00:00:29]} 9. Nd2
{[%clk 01:32:48]} {[%emt 00:00:30]} c5 {[%clk 01:31:48]} {[%emt 00:00:40]} 10.
Ne2 {[%clk 01:31:21]} {[%emt 00:02:30]} b6 {[%clk 01:31:02]} {[%emt 00:00:43]}
11. O-O-O {[%clk 01:30:50]} {[%emt 00:01:01]} Ne7 {[%emt 00:19:28]} 12. Nc4
{[%emt 00:07:44]} Ng6 {[%emt 00:03:01]} 13. Nf4 {[%emt 00:03:12]} Re8 {[%emt
00:09:20]} 14. f3 {[%emt 00:14:02]} Bc6 {[%emt 00:01:32]} 15. Rhe1 {[%emt
00:11:05]} f6 {[%emt 00:21:22]} 16. Rd2 {[%clk 00:41:19]} {[%emt 00:00:14]} Ne5
{[%clk 00:50:52]} {[%emt 00:04:11]} 17. Nxe5 {[%emt 00:02:52]} fxe5 {[%emt
00:03:11]} 18. Nd5 {[%emt 00:09:50]} Kb7 {[%clk 00:32:50]} {[%emt 00:05:49]} 19.
Red1 {[%clk 00:33:59]} {[%emt 00:06:09]} Bd6 {[%emt 00:04:23]} 20. Bf2 {[%clk
00:31:49]} {[%emt 00:00:13]} h6 {[%emt 00:12:15]} 21. Kb1 {[%clk 00:20:38]}
{[%emt 00:02:12]} Rhf8 22. Bg3 {[%emt 00:03:30]} Rf7 {[%clk 00:25:33]} {[%emt
00:09:26]} 23. Kc1 Ref8 {[%emt 00:02:03]} 24. Kb1 {[%emt 00:02:31]} g6 {[%emt
00:00:33]} 25. Kc1 {[%clk 00:10:49]} {[%emt 00:01:33]} Re8 {[%clk 00:22:51]}
{[%emt 00:01:00]} 26. Kb1 {[%emt 00:01:03]} Bf8 {[%emt 00:02:52]} 27. Ne3
{[%emt 00:00:19]} Kc8 {[%clk 00:22:18]} {[%emt 00:00:51]} 28. Nc4 {[%emt
00:01:25]} Bg7 {[%emt 00:00:28]} 29. Ne3 {[%emt 00:00:14]} h5 {[%emt 00:04:18]}
30. Bh4 {[%clk 00:04:42]} {[%emt 00:00:03]} Bf6 {[%clk 00:21:21]} {[%emt
00:01:05]} 31. Bxf6 {[%clk 00:04:55]} {[%emt 00:00:18]} Rxf6 {[%emt 00:00:21]}
32. Nd5 {[%clk 00:05:07]} Rf7 {[%emt 00:01:42]} 33. Ne3 {[%emt 00:00:04]} b5
{[%emt 00:02:28]} 34. Kc1 {[%clk 00:03:08]} {[%emt 00:00:57]} Ref8 {[%emt
00:01:37]} 35. h4 {[%emt 00:07:31]} Rg7 {[%clk 00:14:11]} {[%emt 00:00:07]} 36.
Nd5 {[%clk 00:00:56]} {[%emt 00:01:22]} Bd7 {[%clk 00:14:03]} {[%emt 00:00:38]}
37. Ne3 {[%clk 00:00:53]} {[%emt 00:00:34]} Be6 {[%emt 00:00:43]} 38. Rg1
{[%clk 00:00:42]} {[%emt 00:00:05]} g5 {[%clk 00:13:10]} {[%emt 00:01:46]} 39.
hxg5 {[%clk 00:00:44]} {[%emt 00:00:28]} Rxg5 {[%clk 00:13:04]} {[%emt
00:00:36]} 40. Rf2 {[%clk 00:00:42]} {[%emt 00:00:32]} Kb7 {[%clk 00:11:02]}
{[%emt 00:02:32]} 41. a3 {[%clk 00:00:42]} {[%emt 00:00:31]} Rfg8 {[%clk
00:10:06]} {[%emt 00:01:25]} 42. f4 {[%clk 00:00:37]} {[%emt 00:00:35]} exf4
{[%clk 00:09:57]} {[%emt 00:00:39]} 43. Rxf4 {[%clk 00:01:01]} {[%emt
00:00:05]} Rg3 {[%clk 00:09:20]} {[%emt 00:01:07]} 44. Nf5 {[%clk 00:00:35]}
{[%emt 00:00:56]} Rxg2 {[%clk 00:08:45]} {[%emt 00:01:05]} 45. Rxg2 {[%clk
00:00:36]} {[%emt 00:00:29]} Rxg2 {[%clk 00:09:11]} {[%emt 00:00:04]} 46. Rh4
{[%clk 00:00:58]} {[%emt 00:00:08]} Rg5 {[%clk 00:09:02]} {[%emt 00:00:38]} 47.
Kd2 {[%clk 00:00:56]} {[%emt 00:00:33]} Bxf5 {[%clk 00:09:14]} {[%emt
00:00:19]} 48. exf5 {[%clk 00:01:16]} {[%emt 00:00:09]} Rxf5 {[%clk 00:09:40]}
{[%emt 00:00:04]} 49. Ke3 {[%clk 00:01:34]} {[%emt 00:00:12]} Kc6 {[%clk
00:09:23]} {[%emt 00:00:47]} 50. b3 {[%clk 00:01:55]} {[%emt 00:00:09]} Kd5
{[%clk 00:08:30]} {[%emt 00:01:23]} 51. c4+ {[%clk 00:01:08]} {[%emt 00:01:18]}
bxc4 {[%clk 00:08:15]} {[%emt 00:00:46]} 52. bxc4+ {[%clk 00:01:29]} {[%emt
00:00:09]} Ke5 {[%clk 00:08:38]} {[%emt 00:00:06]} 53. Re4+ {[%clk 00:00:36]}
{[%emt 00:01:23]} Kd6 {[%clk 00:08:32]} {[%emt 00:00:35]} 54. Rh4 {[%clk
00:00:51]} {[%emt 00:00:15]} Rg5 {[%clk 00:07:50]} {[%emt 00:01:12]} 55. Kd3
{[%clk 00:00:32]} {[%emt 00:00:49]} Kc6 {[%clk 00:07:00]} {[%emt 00:01:19]} 0-1